Workbook

Sheet Tax Returns
B1: Total Income | C1: WH | D1: Est Pmts | E1: Ttl Tax
A2: 2022 Return | B2: 258062 | C2: 10257 | D2: =E2-C2 -> 56100 | E2: 66357
A3: 2021 Return | B3: 434505 | C3: 26630 | D3: =E3-C3 -> 75870 | E3: 102500
A4: 2020 Return | B4: 414386 | C4: 24655 | D4: =E4-C4 -> 77436 | E4: 102091
A5: Average | B5: =AVERAGE(B2:B4) -> 368984.3333 | C5: =AVERAGE(C2:C4) -> 20514 | D5: =AVERAGE(D2:D4) -> 69802 | E5: =AVERAGE(E2:E4) -> 90316
A6: Monthly | B6: =B5/12 -> 30748.69444 | C6: =C5/12 -> 1709.5 | D6: =D5/12 -> 5816.833333 | E6: =E5/12 -> 7526.333333

Sheet Bank Statement
A2: Date | B2: Expense | C2: Amount | D2: Category | H2: Categories | I2: Totals | J2: Column1
A3: 2024-01-03 | B3: PG County Assoc | C3: 824 | D3: Association Dues & Fees | H3: Advertising | I3: =SUMIF(Table1[[#All],[Category]],Table2[[#This Row],[Categories]],Table1[[#All],[Amount]]) -> 470.28 | J3: =Table2[[#This Row],[Totals]]/12 -> 39.19
A4: 2024-01-03 | B4: Staples | C4: 11.08 | D4: Office Supplies | H4: Association Dues & Fees | I4: =SUMIF(Table1[[#All],[Category]],Table2[[#This Row],[Categories]],Table1[[#All],[Amount]]) -> 16552.07 | J4: =Table2[[#This Row],[Totals]]/12 -> 1379.339167
A5: 2024-01-03 | B5: KW Marketplace | C5: 5.64 | D5: Association Dues & Fees | H5: Bank Fees | I5: =SUMIF(Table1[[#All],[Category]],Table2[[#This Row],[Categories]],Table1[[#All],[Amount]]) -> 520 | J5: =Table2[[#This Row],[Totals]]/12 -> 43.33333333
A6: 2024-01-03 | B6: Dominion Dental | C6: 8.57 | D6: Employee Benefits | H6: Continuing Education | I6: =SUMIF(Table1[[#All],[Category]],Table2[[#This Row],[Categories]],Table1[[#All],[Amount]]) -> 359.91 | J6: =Table2[[#This Row],[Totals]]/12 -> 29.9925
A7: 2024-01-03 | B7: DotLoop | C7: 33.91 | D7: Software | H7: Employee Benefits | I7: =SUMIF(Table1[[#All],[Category]],Table2[[#This Row],[Categories]],Table1[[#All],[Amount]]) -> 1555.92 | J7: =Table2[[#This Row],[Totals]]/12 -> 129.66
A8: 2024-01-03 | B8: KWRI #400 | C8: 199 | D8: Association Dues & Fees | H8: External Contractor | I8: =SUMIF(Table1[[#All],[Category]],Table2[[#This Row],[Categories]],Table1[[#All],[Amount]]) -> 432.49 | J8: =Table2[[#This Row],[Totals]]/12 -> 36.04083333
A9: 2024-09-18 | B9: Apple | C9: 0.99 | D9: Software | H9: Hiring | I9: =SUMIF(Table1[[#All],[Category]],Table2[[#This Row],[Categories]],Table1[[#All],[Amount]]) -> 621 | J9: =Table2[[#This Row],[Totals]]/12 -> 51.75
A10: 2024-01-03 | B10: AP3D | C10: 220.48 | D10: Marketing | H10: IT | I10: =SUMIF(Table1[[#All],[Category]],Table2[[#This Row],[Categories]],Table1[[#All],[Amount]]) -> 99.14 | J10: =Table2[[#This Row],[Totals]]/12 -> 8.261666667
A11: 2024-01-04 | B11: CINC | C11: 1600.44 | D11: Marketing | H11: Marketing | I11: =SUMIF(Table1[[#All],[Category]],Table2[[#This Row],[Categories]],Table1[[#All],[Amount]]) -> 14695.58 | J11: =Table2[[#This Row],[Totals]]/12 -> 1224.631667
A12: 2024-01-05 | B12: Transfer to 6106 | C12: 8500 | D12: Personal | H12: Office Supplies | I12: =SUMIF(Table1[[#All],[Category]],Table2[[#This Row],[Categories]],Table1[[#All],[Amount]]) -> 136.71 | J12: =Table2[[#This Row],[Totals]]/12 -> 11.3925
A13: 2024-08-21 | B13: Appliancere | C13: 537.2 | H13: Personal | I13: =SUMIF(Table1[[#All],[Category]],Table2[[#This Row],[Categories]],Table1[[#All],[Amount]]) -> 187200 | J13: =Table2[[#This Row],[Totals]]/12 -> 15600
A14: 2024-01-05 | B14: Adobe | C14: 19.99 | D14: Software | H14: Repairs & Maintenance | I14: =SUMIF(Table1[[#All],[Category]],Table2[[#This Row],[Categories]],Table1[[#All],[Amount]]) -> 1189.15 | J14: =Table2[[#This Row],[Totals]]/12 -> 99.09583333
A15: 2024-09-14 | B15: Asteroominc | C15: 109.99 | H15: Royalties | I15: =SUMIF(Table1[[#All],[Category]],Table2[[#This Row],[Categories]],Table1[[#All],[Amount]]) -> 0 | J15: =Table2[[#This Row],[Totals]]/12 -> 0
A16: 2024-01-06 | B16: Bank Svc Chg | C16: 45 | D16: Bank Fees | H16: Software | I16: =SUMIF(Table1[[#All],[Category]],Table2[[#This Row],[Categories]],Table1[[#All],[Amount]]) -> 5286.19 | J16: =Table2[[#This Row],[Totals]]/12 -> 440.5158333
A17: 2024-01-09 | B17: CareFirst BCBS | C17: 380.41 | D17: Employee Benefits | H17: Taxes, Current | I17: =SUMIF(Table1[[#All],[Category]],Table2[[#This Row],[Categories]],Table1[[#All],[Amount]]) -> 402.33 | J17: =Table2[[#This Row],[Totals]]/12 -> 33.5275
A18: 2024-01-17 | B18: Transfer to 6106 | C18: 4000 | D18: Personal | H18: Utilities | I18: =SUMIF(Table1[[#All],[Category]],Table2[[#This Row],[Categories]],Table1[[#All],[Amount]]) -> 890.04 | J18: =Table2[[#This Row],[Totals]]/12 -> 74.17
A19: 2024-01-17 | B19: CE Shop Real Estate | C19: 56.93 | D19: Marketing | H19: Loan to Jackson Group | I19: =SUMIF(Table1[[#All],[Category]],Table2[[#This Row],[Categories]],Table1[[#All],[Amount]]) -> 18850 | J19: =Table2[[#This Row],[Totals]]/12 -> 1570.833333
A20: 2024-01-17 | B20: DotLoop | C20: 212 | D20: Software | H20: Loan to Jackson Apraisal | I20: =SUMIF(Table1[[#All],[Category]],Table2[[#This Row],[Categories]],Table1[[#All],[Amount]]) -> 7500 | J20: =Table2[[#This Row],[Totals]]/12 -> 625
A21: 2024-03-13 | B21: Atlas Restaurant | C21: 237.11
A22: 2024-07-07 | B22: ATM | C22: 200 | D22: Personal
A23: 2024-01-19 | B23: OnlineJobs.ph | C23: 69 | D23: Hiring
A24: 2024-10-10 | B24: Barbara D Spen | C24: 540.53
A25: 2024-01-19 | B25: MetaPlatform | C25: 25 | D25: IT
A26: 2024-01-23 | B26: CETBIZ.Com | C26: 39.99 | D26: Continuing Education
A27: 2024-01-23 | B27: DotLoop | C27: 33.91 | D27: Software
A28: 2024-01-26 | B28: GoDaddy | C28: 50.34 | D28: IT
A29: 2024-01-30 | B29: Transfer to 6106 | C29: 6000 | D29: Personal
A30: 2024-01-30 | B30: DotLoop | C30: 33.91 | D30: Software
A31: 2024-02-02 | B31: KW Marketplace | C31: 5.64 | D31: Association Dues & Fees
A32: 2024-02-02 | B32: Dominion Dental | C32: 8.57 | D32: Employee Benefits
A33: 2024-02-02 | B33: DotLoop | C33: 33.91 | D33: Software
A34: 2024-02-02 | B34: CINC | C34: 1350.44 | D34: Marketing
A35: 2024-03-16 | B35: CUAERIC | C35: 3583.79
A36: 2024-09-14 | B36: Dicks Sporting Goods | C36: 73.8
A37: 2024-02-06 | B37: Adobe | C37: 21.19 | D37: Software
A38: 2024-02-06 | B38: Realtor Association | C38: 325 | D38: Association Dues & Fees
A39: 2024-09-14 | B39: Dicks Sporting Goods | C39: 58.43
A40: 2024-02-07 | B40: Bank Svc Chg | C40: 45 | D40: Bank Fees
A41: 2024-02-09 | B41: Bright MLS | C41: 127.2 | D41: Association Dues & Fees
A42: 2024-02-09 | B42: CareFirst BCBS | C42: 380.41 | D42: Employee Benefits
A43: 2024-02-13 | B43: Keller Williams | C43: 70 | D43: Association Dues & Fees
A44: 2024-02-14 | B44: Realty SignPost | C44: 85 | D44: Marketing
A45: 2024-02-14 | B45: MD Dept Assmnt/Tax | C45: 211 | D45: Taxes, Current
A46: 2024-02-14 | B46: MD Government Service Fee | C46: 6.33 | D46: Taxes, Current
A47: 2024-02-16 | B47: Transfer to 6106 | C47: 2000 | D47: Personal
A48: 2024-02-17 | B48: MetaPlatform | C48: 23.8 | D48: IT
A49: 2024-02-21 | B49: OnlineJobs.ph | C49: 69 | D49: Hiring
A50: 2024-09-14 | B50: Dicks Sporting Goods | C50: 1.92
A51: 2024-02-21 | B51: Fiverr | C51: 142.43 | D51: External Contractor
A52: 2024-02-22 | B52: CTEBIZ | C52: 39.99 | D52: Continuing Education
A53: 2024-02-22 | B53: DotLoop | C53: 33.91 | D53: Software
A54: 2024-03-01 | B54: DotLoop | C54: 33.91 | D54: Software
A55: 2024-03-02 | B55: KW Marketplace | C55: 5.64 | D55: Association Dues & Fees
A56: 2024-03-02 | B56: Dominion Dental | C56: 8.57 | D56: Employee Benefits
A57: 2024-03-02 | B57: DotLoop | C57: 33.91 | D57: Software
A58: 2024-03-02 | B58: Calendly | C58: 152.64 | D58: Software
A59: 2024-04-26 | B59: EB Quantum | C59: 104.75
A60: 2024-03-06 | B60: Transfer to 6106 | C60: 7000 | D60: Personal
A61: 2024-03-06 | B61: Adobe | C61: 21.19 | D61: Software
A62: 2024-03-06 | B62: Fiverr | C62: 23.1 | D62: External Contractor
A63: 2024-03-07 | B63: Bank Svc Chg | C63: 15 | D63: Bank Fees
A64: 2024-03-09 | B64: CareFirst BCBS | C64: 380.41 | D64: Employee Benefits
A65: 2024-03-10 | B65: Bright MLS | C65: 173.4 | D65: Association Dues & Fees
A66: 2024-03-13 | B66: Keller Williams | C66: 70 | D66: Association Dues & Fees
A67: 2024-07-20 | B67: Event Rentals | C67: 1612.47
A68: 2024-12-08 | B68: Evolved Agents | C68: 4000
A69: 2024-03-15 | B69: 460KWPP | C69: 365 | D69: Association Dues & Fees
A70: 2024-03-20 | B70: Hook Reel | C70: 33.18
A71: 2024-01-18 | B71: Hopper | C71: 152.78
A72: 2024-02-06 | B72: Hopper | C72: 125
A73: 2024-04-28 | B73: Housefliolney MD | C73: 200
A74: 2024-03-20 | B74: OnlineJobs.ph | C74: 69 | D74: Hiring
A75: 2024-03-22 | B75: Transfer to 6106 | C75: 7000 | D75: Personal
A76: 2024-03-22 | B76: CTEBIZ | C76: 39.99 | D76: Continuing Education
A77: 2024-03-22 | B77: DotLoop | C77: 33.91 | D77: Software
A78: 2024-03-29 | B78: DotLoop | C78: 33.91 | D78: Software
A79: 2024-03-31 | B79: PG County Assoc | C79: 85 | D79: Association Dues & Fees
A80: 2024-04-03 | B80: KW Marketplace | C80: 5.64 | D80: Association Dues & Fees
A81: 2024-04-03 | B81: Dominion Dental | C81: 8.57 | D81: Employee Benefits
A82: 2024-04-03 | B82: DotLoop | C82: 33.91 | D82: Software
A83: 2024-09-06 | B83: Housefliolney MD | C83: 475
A84: 2024-04-03 | B84: HouseLens | C84: 320 | D84: Software
A85: 2024-04-03 | B85: AM Cards LLC | C85: 17.45 | D85: Marketing
A86: 2024-08-14 | B86: InstantSeats Inc | C86: 275
A87: 2024-04-05 | B87: Adobe | C87: 21.19 | D87: Software
A88: 2024-12-14 | B88: IronKladllc | C88: 118.99
A89: 2024-04-06 | B89: Bank Svc Chg | C89: 30 | D89: Bank Fees
A90: 2024-04-10 | B90: CareFirst BCBS | C90: 380.41 | D90: Employee Benefits
A91: 2024-04-12 | B91: Keller Williams | C91: 70 | D91: Association Dues & Fees
A92: 2024-05-25 | B92: Jaspers Restaurant | C92: 120.12
A93: 2024-04-14 | B93: DC Government Payment | C93: 30 | D93: Taxes, Current
A94: 2024-10-13 | B94: LA Crab Shack | C94: 87.77
A95: 2024-10-13 | B95: LA Crab Shack | C95: 98.06
A96: 2024-10-13 | B96: LA Crab Shack | C96: 118.82
A97: 2024-10-13 | B97: LA Crab Shack | C97: 196.12
A98: 2024-04-19 | B98: Bright MLS | C98: 21.2 | D98: Association Dues & Fees
A99: 2024-10-13 | B99: LA Crab Shack | C99: 166.74
A100: 2024-04-21 | B100: Fiverr | C100: 63.3 | D100: External Contractor
A101: 2024-04-24 | B101: KW Marketplace | C101: 10.6 | D101: Association Dues & Fees
A102: 2024-04-24 | B102: CTEBIZ | C102: 39.99 | D102: Continuing Education
A103: 2024-04-24 | B103: DotLoop | C103: 33.91 | D103: Software
A104: 2024-11-29 | B104: Ledo Pizza | C104: 40.39
A105: 2024-09-01 | B105: Marie Dias | C105: 208
A106: 2024-09-20 | B106: MaryLandhis | C106: 45
A107: 2024-04-26 | B107: Fiverr | C107: 35.76 | D107: External Contractor
A108: 2024-04-26 | B108: Fiverr | C108: 44.2 | D108: External Contractor
A109: 2024-04-26 | B109: Fiverr | C109: 12.55 | D109: External Contractor
A110: 2024-11-14 | B110: MC Claimsigned Affidavit not rcvd | C110: 667.51
A111: 2024-10-10 | B111: McAfee | C111: 127.19 | D111: Software
A112: 2024-04-17 | B112: Md Dept of Licensing | C112: 25 | D112: Taxes, Current
A113: 2024-04-28 | B113: Market Leader | C113: 199 | D113: Marketing
A114: 2024-12-05 | B114: Metro Capitol Home | C114: 195
A115: 2024-06-02 | B115: Microsoft | C115: 7.41 | D115: Software
A116: 2024-05-01 | B116: DotLoop | C116: 33.91 | D116: Software
A117: 2024-05-02 | B117: Market Leader | C117: 99 | D117: Marketing
A118: 2024-05-02 | B118: KW Marketplace | C118: 5.64 | D118: Association Dues & Fees
A119: 2024-05-02 | B119: DotLoop | C119: 33.91 | D119: Software
A120: 2024-07-03 | B120: Microsoft | C120: 7.41 | D120: Software
A121: 2024-08-02 | B121: Microsoft | C121: 7.41 | D121: Software
A122: 2024-05-05 | B122: Adobe | C122: 21.19 | D122: Software
A123: 2024-05-08 | B123: KW Marketplace | C123: 35.91 | D123: Association Dues & Fees
A124: 2024-05-08 | B124: Bank Svc Chg | C124: 30 | D124: Bank Fees
A125: 2024-05-10 | B125: Bright MLS | C125: 127.2 | D125: Association Dues & Fees
A126: 2024-05-11 | B126: Home Depot | C126: 270.15 | D126: Repairs & Maintenance
A127: 2024-05-12 | B127: Keller Williams | C127: 70 | D127: Association Dues & Fees
A128: 2024-09-05 | B128: Microsoft | C128: 7.41 | D128: Software
A129: 2024-10-02 | B129: Microsoft | C129: 7.41 | D129: Software
A130: 2024-05-18 | B130: HouseLens | C130: 375 | D130: Software
A131: 2024-01-05 | B131: Modrichell | C131: 560 | D131: Association Dues & Fees
A132: 2024-01-19 | B132: Modrichell | C132: 560 | D132: Association Dues & Fees
A133: 2024-02-02 | B133: Modrichell | C133: 672 | D133: Association Dues & Fees
A134: 2024-05-22 | B134: KW Marketplace | C134: 10.6 | D134: Association Dues & Fees
A135: 2024-05-22 | B135: CTEBIZ | C135: 39.99 | D135: Continuing Education
A136: 2024-05-22 | B136: DotLoop | C136: 33.91 | D136: Software
A137: 2024-02-21 | B137: Modrichell | C137: 616 | D137: Association Dues & Fees
A138: 2024-03-03 | B138: Modrichell | C138: 504 | D138: Association Dues & Fees
A139: 2024-03-17 | B139: Modrichell | C139: 616 | D139: Association Dues & Fees
A140: 2024-04-03 | B140: Modrichell | C140: 672 | D140: Association Dues & Fees
A141: 2024-04-18 | B141: Modrichell | C141: 560 | D141: Association Dues & Fees
A142: 2024-05-03 | B142: Modrichell | C142: 560 | D142: Association Dues & Fees
A143: 2024-05-30 | B143: DotLoop | C143: 33.91 | D143: Software
A144: 2024-05-17 | B144: Modrichell | C144: 616 | D144: Association Dues & Fees
A145: 2024-06-02 | B145: Modrichell | C145: 224 | D145: Association Dues & Fees
A146: 2024-12-27 | B146: Modrichell | C146: 400 | D146: Association Dues & Fees
A147: 2024-06-01 | B147: Bright MLS | C147: 162.8 | D147: Association Dues & Fees
A148: 2024-09-01 | B148: NewHorizon | C148: 49
A149: 2024-06-02 | B149: Fiverr | C149: 37.08 | D149: External Contractor
A150: 2024-06-02 | B150: Market Leader | C150: 1299 | D150: Marketing
A151: 2024-06-02 | B151: KW Marketplace | C151: 46.86 | D151: Association Dues & Fees
A152: 2024-06-02 | B152: DotLoop | C152: 33.91 | D152: Software
A153: 2024-07-20 | B153: Next Level Gaming | C153: 289.5
A154: 2024-07-24 | B154: Next Level Gaming | C154: 289.5
A155: 2024-04-19 | B155: OnlineJobs.ph | C155: 69 | D155: Hiring
A156: 2024-06-05 | B156: Adobe | C156: 21.19 | D156: Software
A157: 2024-05-19 | B157: OnlineJobs.ph | C157: 69 | D157: Hiring
A158: 2024-06-06 | B158: Bank Svc Chg | C158: 30 | D158: Bank Fees
A159: 2024-06-20 | B159: OnlineJobs.ph | C159: 69 | D159: Hiring
A160: 2024-07-18 | B160: OnlineJobs.ph | C160: 69 | D160: Hiring
A161: 2024-06-14 | B161: Keller Williams | C161: 70 | D161: Association Dues & Fees
A162: 2024-06-14 | B162: Fiverr | C162: 5.77 | D162: External Contractor
A163: 2024-08-17 | B163: OnlineJobs.ph | C163: 69 | D163: Hiring
A164: 2024-09-18 | B164: OnlineJobs.ph | C164: 69 | D164: Hiring
A165: 2024-07-19 | B165: Paint Me Silly | C165: 510
A166: 2024-03-13 | B166: Parking Mgmt | C166: 9.5
A167: 2024-06-22 | B167: KW Marketplace | C167: 10.6 | D167: Association Dues & Fees
A168: 2024-06-22 | B168: CTEBIZ | C168: 39.99 | D168: Continuing Education
A169: 2024-06-22 | B169: DotLoop | C169: 33.91 | D169: Software
A170: 2024-06-28 | B170: Party City | C170: 25.12
A171: 2024-07-21 | B171: Party City | C171: 50.35
A172: 2024-07-07 | B172: PayPal | C172: 106.8
A173: 2024-06-26 | B173: AM Cards LLC | C173: 4.45 | D173: Marketing
A174: 2024-06-27 | B174: HouseLens | C174: 200 | D174: Software
A175: 2024-05-01 | B175: PeacockTVL | C175: 5.29
A176: 2024-05-30 | B176: PeacockTVL | C176: 5.29
A177: 2024-06-29 | B177: PeacockTVL | C177: 5.29
A178: 2024-09-25 | B178: Petco | C178: 95.57
A179: 2024-06-29 | B179: DotLoop | C179: 33.91 | D179: Software
A180: 2024-06-22 | B180: PG County Assoc | C180: 25 | D180: Marketing
A181: 2024-06-23 | B181: PG County Assoc | C181: 626.14 | D181: Marketing
A182: 2024-07-03 | B182: Market Leader | C182: 1299 | D182: Marketing
A183: 2024-12-01 | B183: PG County Assoc | C183: 860 | D183: Marketing
A184: 2024-07-03 | B184: KW Marketplace | C184: 46.86 | D184: Association Dues & Fees
A185: 2024-07-03 | B185: DotLoop | C185: 33.91 | D185: Software
A186: 2024-12-08 | B186: PG County Assoc | C186: 60 | D186: Marketing
A187: 2024-04-05 | B187: PSI Services LLC | C187: 60 | D187: Marketing
A188: 2024-07-05 | B188: Adobe | C188: 21.19 | D188: Software
A189: 2024-07-06 | B189: Bank Svc Chg | C189: 60 | D189: Bank Fees
A190: 2024-07-07 | B190: Bank Svc Chg | C190: 30 | D190: Bank Fees
A191: 2024-07-07 | B191: Bank Svc Chg | C191: 2.5 | D191: Bank Fees
A192: 2024-04-14 | B192: PSI Services LLC | C192: 52 | D192: Marketing
A193: 2024-09-15 | B193: Qazzoo | C193: 282
A194: 2024-04-25 | B194: Realty SignPost | C194: 92 | D194: Marketing
A195: 2024-06-29 | B195: Realty SignPost | C195: 105 | D195: Marketing
A196: 2024-07-12 | B196: Keller Williams | C196: 70 | D196: Association Dues & Fees
A197: 2024-09-06 | B197: Realty SignPost | C197: 85 | D197: Marketing
A198: 2024-10-10 | B198: Realty SignPost | C198: 76 | D198: Marketing
A199: 2024-07-17 | B199: AllThingsRE | C199: 132.25 | D199: Marketing
A200: 2024-12-15 | B200: Realty SignPost | C200: 69 | D200: Marketing
A201: 2024-08-29 | B201: RP Game Day | C201: 149.96
... 157 more rows

Sheet P&L's
A1: JAG | D1: 143 | G1: JGL Shutting down
A2: Income Service Income | B2: 360459.07 | E2: TOTAL | G2: Income Sales Commission | H2: 16338.04
A3: Total Income | B3: 360459.07 | D3: Income Sales Commission | E3: 272477.6 | G3: Total Income | H3: 16338.04 | J3: Total Income | K3: =SUM(B47,E40,H43) -> 247275.3 | L3: =K3/12 -> 20606.275
A4: Cost of Goods Sold Cost of Goods Sold Contractors | B4: 142811.16 | D4: Total Income | E4: 272477.6 | G4: GROSS PROFIT | H4: 16338.04
A5: Total Cost of Goods Sold | B5: 142811.16 | D5: GROSS PROFIT | E5: 272477.6 | G5: Expenses Advertising & marketing | H5: 4380.33
D6: Expenses Advertising & marketing | E6: 5144.11 | G6: Lead Generation | H6: 797
A7: GROSS PROFIT | B7: 217647.91 | D7: Lead Generation Costs | E7: 17162.9 | G7: Listing fees | H7: 2530
A8: Expenses Administrative Fees | B8: 574.76 | D8: Listing fees | E8: 3026.46 | G8: Total Advertising & marketing | H8: 7707.33
A9: Advertising & Marketing | B9: 3790.71 | D9: Marketing Expense | E9: 3357.15 | G9: Business licenses | H9: 3295
A10: Bank Charges & Fees | B10: 163.26 | D10: Total Advertising & marketing | E10: 28690.62 | G10: Commissions & fees | H10: 2994.2
A11: Continuing Education | B11: 931.01 | D11: Business licences | E11: 1286 | G11: Contractors | H11: 4430
A12: Dues & Subscription | B12: 1101.95 | D12: Commissions & fees | E12: 3075.31 | G12: Contributions to charities | H12: 250
A13: Insurance | B13: 6861.14 | D13: Contractors | E13: 9202.02 | G13: General business expenses Bank fees & service charges | H13: 118
A14: Workers Compensation Insurance | B14: 439.2 | D14: Fraud Charges | E14: 667.51 | G14: Total General business expenses | H14: 118
A15: Total Insurance | B15: 7300.34 | D15: General business expenses Bank fees & service charges | E15: 530.93 | G15: Insurance | H15: 4771.92
A16: Legal & Professional Services | B16: 11897.06 | D16: Memberships & subscriptions | E16: 1885.14 | G16: Legal & professional fees | H16: 799.68
A17: Office Supplies & Software | B17: 19478.9 | D17: Total General business expenses | E17: 2416.07 | G17: Accounting fees | H17: 2768.72
A18: Parking | B18: 29 | D18: Insurance | E18: 1521.64 | G18: Legal Fees | H18: 24135.92
A19: Payroll Expenses Taxes | B19: 4303.89 | D19: Legal & accounting services Accounting fees | E19: 4013.72 | G19: Total Legal & professional fees | H19: 27704.32
A20: Wages | B20: 54740 | D20: Legal fees | E20: 3583.79 | G20: Office expenses Office supplies | H20: 620.36
A21: Total Payroll Expenses | B21: 59043.89 | D21: Professional Services | E21: 4107.1 | G21: Software & apps | H21: 123.41
A22: Postage & Delivery | B22: 20 | D22: Total Legal & accounting services | E22: 11704.61 | G22: Total Office expenses | H22: 743.77
A23: Real Estate Sales Expenses | B23: 1615 | D23: Meals | E23: 430.8 | G23: Property Management | H23: 535
A24: Leads Purchased | B24: 9638.18 | D24: Office expenses Office supplies | E24: 136.71 | G24: Repairs & maintenance | H24: 0
A25: Total Real Estate Sales Expenses | B25: 11253.18 | D25: Software & apps | E25: 6383.08 | G25: Supplies | H25: 5.61
A26: Reimbursements | B26: 1680 | D26: Total Office expenses | E26: 6519.79 | G26: Travel | H26: 1456.06
A27: Rent & Lease | B27: 1000 | D27: Repairs & maintenance | E27: 1872.93 | G27: Airfare | H27: 257.17
A28: Repairs & Maintenance | B28: 112.83 | D28: Travel | E28: 164.5 | G28: Total Travel | H28: 1713.23
A29: Salaries & Wages | B29: 5030.27 | D29: Airfare | E29: 69.95 | G29: Utilities Electricity | H29: 0
A30: Payroll Fees | B30: 3446.94 | D30: Total Travel | E30: 234.45 | G30: Gas | H30: 0
A31: Payroll Taxes | B31: 1808.79 | D31: Utilities Phone service | E31: 890.04 | G31: Phone service | H31: 95.38
A32: Workers Compensation | B32: 33.58 | D32: Total Utilities | E32: 890.04 | G32: Total Utilities | H32: 95.38
A33: Total Salaries & Wages | B33: 10319.58 | D33: Total Expenses | E33: 68511.79 | G33: Total Expenses | H33: 54363.76
A34: Storage & Moving | B34: 2477.6 | D34: NET OPERATING INCOME | E34: 203965.81 | G34: NET OPERATING INCOME | H34: -38025.72
A35: Taxes & Licenses | B35: 150 | E35: TOTAL | H35: TOTAL
A36: Telephone Expenses | B36: 4812.32 | D36: Other Income Other income Interest earned | E36: 38.71 | G36: Other Income Gain/Loss on Sale of Asset | H36: 3763.03
B37: TOTAL | D37: Total Other income | E37: 38.71 | G37: Total Other Income | H37: 3763.03
A38: Travel Airline | B38: 583.96 | D38: Total Other Income | E38: 38.71 | G38: Other Expenses Vehicle expenses Vehicle fines & penalties | H38: 1896.11
A39: Transportation | B39: 129.61 | D39: NET OTHER INCOME | E39: 38.71 | G39: Vehicle registration | H39: 997
A40: Total Travel | B40: 713.57 | D40: NET INCOME | E40: 204004.52 | G40: Total Vehicle expenses | H40: 2893.11
A41: Utilities | B41: 392.39 | G41: Total Other Expenses | H41: 2893.11
A42: Total Expenses | B42: 137242.35 | G42: NET OTHER INCOME | H42: 869.92
A43: NET OPERATING INCOME | B43: 80405.56 | G43: NET INCOME | H43: -37155.8
A44: Other Income Interest Income | B44: 21.02
A45: Total Other Income | B45: 21.02
A46: NET OTHER INCOME | B46: 21.02
A47: NET INCOME | B47: 80426.58
